bitfinex/quotes_SOLUSD_20251218
["timestamp","ask_amount","ask_price","bid_price","bid_amount"]
[1766077488596,14.61441275,126.44,126.39,0.66]
[1766077490288,6.70552316,126.43,126.36,0.66]
[1766077490498,6.70552316,126.43,126.37,0.66]
[1766077490692,15.38552316,126.43,126.37,0.66]
[1766077491004,6.70552316,126.4,126.35,0.66]
[1766077491191,6.70552316,126.41,126.35,0.66]
[1766077491395,0.62,126.42,126.36,0.66]
[1766077491604,6.70552316,126.41,126.36,0.66]
[1766077491994,14.61643035,126.41,126.36,0.66]
[1766077492307,6.70552316,126.4,126.36,0.66]
[1766077492490,6.70552316,126.39,126.34,0.66]
[1766077492875,6.70552316,126.4,126.34,0.66]
[1766077493079,15.23643035,126.41,126.35,0.66]
[1766077493887,6.70552316,126.39,126.35,0.66]
[1766077494094,23.91760796,126.39,126.34,0.66]
[1766077494285,23.29760796,126.39,126.34,0.66]
[1766077494489,8.68,126.39,126.34,6.70552316]
[1766077494677,8.68,126.39,126.35,0.66]
[1766077495218,14.61706244,126.4,126.35,0.66]
[1766077495405,7.91153928,126.4,126.35,0.66]
[1766077495585,14.61706244,126.4,126.35,0.66]
[1766077496510,6.70552316,126.39,126.35,0.66]
[1766077496715,16.59096201,126.41,126.35,0.66]
[1766077496888,23.29648517,126.41,126.35,0.66]
[1766077497087,6.70552316,126.4,126.35,0.66]
[1766077497311,36.98787839,126.41,126.35,0.66]
[1766077497510,6.70552316,126.39,126.35,0.66]
[1766077497892,36.98787839,126.41,126.36,0.66]
[1766077497893,7.91096201,126.41,126.36,0.66]
[1766077498091,14.61648517,126.41,126.36,0.66]
[1766077498389,6.70552316,126.4,126.36,0.66]
[1766077498589,14.61648517,126.41,126.36,0.66]
[1766077498897,9.3,126.42,126.37,0.66]
[1766077498898,8.68,126.42,126.37,0.66]
[1766077500210,7.9097642,126.43,126.37,0.66]
[1766077500414,603.895473,147.0,126.38,6.70552316]
[1766077500415,7.90880611,126.45,126.38,6.70552316]
[1766077500710,35.00498961,126.45,126.4,0.66]
[1766077500916,6.70552316,126.44,126.4,0.66]
[1766077501415,6.70552316,126.41,126.37,0.71]
[1766077501789,0.62,126.44,126.37,0.71]
[1766077501983,0.62,126.44,126.38,0.71]
[1766077501984,6.70552316,126.43,126.38,0.71]
[1766077502220,7.90951514,126.43,126.38,7.41552316]
[1766077502392,7.90951514,126.43,126.38,0.71]
[1766077502590,14.61466731,126.44,126.39,0.71]
[1766077503097,34.38689128,126.44,126.39,0.71]
[1766077503296,28.30136812,126.44,126.39,0.71]
[1766077503496,23.29405583,126.45,126.39,0.71]
[1766077503699,6.70552316,126.42,126.35,0.71]
[1766077503905,6.70552316,126.39,126.35,0.71]
[1766077504098,6.70552316,126.38,126.33,0.71]
[1766077504295,6.70552316,126.38,126.29,19.79479097]
[1766077504296,6.70552316,126.36,126.29,0.71]
[1766077504623,7.91327055,126.37,126.29,0.71]
[1766077504624,0.62,126.35,126.29,0.71]
[1766077504915,36.37644693,126.37,126.25,0.71]
[1766077504916,27.69644693,126.37,126.25,0.71]
[1766077505108,0.62,126.36,126.29,0.71]
[1766077505415,6.70552316,126.32,126.26,0.71]
[1766077505587,6.70552316,126.31,126.26,0.71]
[1766077505917,0.62,126.32,126.26,0.71]
[1766077506217,6.70552316,126.3,126.26,0.71]
[1766077506388,14.62329011,126.3,126.26,0.71]
[1766077506790,6.70552316,126.28,126.23,0.71]
[1766077507908,8.68,126.29,126.23,6.70552316]
[1766077508215,8.68,126.29,126.24,0.71]
[1766077508389,23.30382524,126.29,126.24,0.71]
[1766077509120,8.68,126.29,126.24,0.71]
[1766077509420,6.70552316,126.28,126.23,0.71]
[1766077509721,6.70552316,126.28,126.19,0.71]
[1766077509722,6.70552316,126.24,126.19,0.71]
[1766077509925,7.32552316,126.24,126.19,0.71]
[1766077510129,0.62,126.24,126.18,0.1]
[1766077510330,15.24727699,126.24,126.19,0.71]
[1766077510905,23.30654402,126.25,126.19,0.71]
[1766077511111,7.9191263,126.28,126.2,0.71]
[1766077511327,14.62464946,126.28,126.21,0.71]
[1766077511540,6.70552316,126.25,126.2,0.71]
[1766077511834,0.62,126.26,126.2,0.71]
[1766077512036,6.70552316,126.25,126.2,0.71]
[1766077512253,7.92141951,126.24,126.19,10.43767296]
[1766077512440,7.92141951,126.24,126.18,0.1]
[1766077512441,6.70552316,126.22,126.18,0.1]
[1766077512731,0.62,126.23,126.18,0.75]
[1766077513117,0.62,126.23,126.11,7.92902468]
[1766077513118,8.68,126.22,126.11,7.92902468]
[1766077513317,10.43767296,126.19,126.1,4.79045428]
[1766077513517,8.68,126.18,126.1,4.79045428]
[1766077513731,6.70552316,126.12,126.1,4.79045428]
[1766077513932,15.38552316,126.18,126.1,4.47045428]
[1766077513933,8.68,126.14,126.1,4.47045428]
[1766077514237,8.68,126.15,126.1,4.47045428]
[1766077514528,8.68,126.15,126.1,11.82597744]
[1766077514731,7.92649292,126.16,126.11,0.65]
[1766077514910,7.92649292,126.16,126.1,4.47045428]
[1766077515120,6.70552316,126.14,126.1,4.47045428]
[1766077515415,8.68,126.13,126.1,4.47045428]
[1766077515609,6.70552316,126.11,126.04,0.06199396]
[1766077515808,8.68,126.13,125.95,39.69770501]
[1766077515809,6.70552316,126.05,125.97,7.93833989]
[1766077516045,8.68,126.06,125.96,0.65]
[1766077516245,8.68,126.06,125.96,7.93902826]
[1766077516428,7.93268555,126.07,126.0,0.65]
[1766077516632,7.93268555,126.07,125.98,0.65]
[1766077516838,7.93268555,126.07,125.92,0.65]
[1766077517027,6.70552316,125.97,125.9,0.65]
[1766077517344,6.70552316,125.97,125.83,49.746638]
[1766077517345,8.68,125.99,125.86,0.65]
[1766077517648,8.68,125.99,125.82,5.11441894]
[1766077517649,8.80994492,125.98,125.88,0.65]
[1766077517952,6.70552316,125.96,125.87,0.65]
[1766077518245,8.80994492,125.98,125.84,0.65]
[1766077518246,8.68,125.98,125.84,0.65]
[1766077518447,16.74771281,125.98,125.86,0.65]
[1766077518647,10.43767296,126.03,125.87,0.65]
[1766077518941,8.80994492,126.03,125.93,0.65]
[1766077519142,8.68,126.04,125.95,6.70552316]
[1766077519329,7.93335977,126.05,125.99,0.65]
[1766077519530,6.70552316,126.04,125.99,0.65]
[1766077519721,6.70552316,126.04,125.95,0.65]
[1766077519722,8.80994492,126.04,125.95,0.65]
[1766077519926,8.68,126.03,125.95,0.65]
[1766077520121,8.68,126.03,125.94,10.43767296]
[1766077520325,6.70552316,125.95,125.89,6.70552316]
[1766077520521,7.9385212,125.97,125.89,0.65]
[1766077520522,27.78451627,125.97,125.89,0.65]
[1766077520728,6.70552316,125.92,125.86,0.65]
[1766077520927,27.78451627,125.97,125.88,0.65]
[1766077521123,7.93776789,125.98,125.88,10.43767296]
[1766077521347,6.70552316,125.94,125.9,0.65]
[1766077521524,7.93776789,125.98,125.82,0.1]
[1766077521525,8.68,125.93,125.82,0.1]
[1766077521724,10.43767296,125.88,125.82,0.1]
[1766077521922,10.43767296,125.88,125.78,4.83573475]
[1766077521923,6.70552316,125.83,125.78,4.83573475]
[1766077522123,8.68,125.87,125.78,4.83573475]
[1766077522124,6.70552316,125.82,125.78,5.48573475]
[1766077522324,6.70552316,125.8,125.78,4.83573475]
[1766077522541,27.81759944,125.82,125.69,0.65]
[1766077522741,8.68,125.86,125.79,0.65]
[1766077522952,8.68,125.86,125.68,33.8808718]
[1766077522953,8.68,125.86,125.76,0.65]
[1766077523126,15.51546808,125.82,125.66,0.65]
[1766077523325,15.51546808,125.82,125.67,27.85072013]
[1766077523326,10.43767296,125.79,125.67,27.85072013]
[1766077523531,10.43767296,125.79,125.7,11.08767296]
[1766077523731,42.59330687,125.79,125.62,19.90003634]
[1766077523932,42.59330687,125.79,125.59,4.14507772]
[1766077523933,6.70552316,125.73,125.59,0.65]
[1766077524148,10.43767296,125.75,125.6,0.65]
[1766077524344,7.72101891,125.78,125.64,0.65]
[1766077524345,8.80994492,125.77,125.64,0.65]
[1766077524545,7.94975753,125.79,125.7,0.65]
[1766077524740,8.7,125.82,125.75,6.70552316]
[1766077524938,7.94849376,125.81,125.74,0.65]
[1766077525252,6.70552316,125.8,125.73,0.65]
[1766077525453,7.94762457,125.83,125.76,6.70552316]
[1766077525658,7.94762457,125.83,125.74,0.65]
[1766077525963,7.94762457,125.83,125.73,0.65]
[1766077525964,15.51546808,125.82,125.73,0.65]
[1766077526174,17.50994492,125.81,125.71,0.65]
[1766077526464,8.80994492,125.79,125.72,7.35552316]
[1766077526775,6.70552316,125.76,125.72,0.65]
[1766077526939,27.82193958,125.8,125.71,6.70552316]
[1766077527141,6.70552316,125.78,125.71,0.65]
[1766077527345,27.82193958,125.8,125.71,0.65]
[1766077527662,16.64856971,125.81,125.72,8.60392957]
[1766077527960,6.70552316,125.79,125.74,6.70552316]
[1766077528161,6.70552316,125.79,125.72,8.60392957]
[1766077528338,6.70552316,125.73,125.72,0.65]
[1766077528544,7.9510217,125.77,125.72,0.65]
[1766077528946,6.70552316,125.73,125.64,19.89790764]
[1766077529342,0.65,125.73,125.61,19.90173167]
[1766077529543,8.7,125.75,125.69,6.70552316]
[1766077529787,7.9510217,125.77,125.72,6.70552316]
[1766077529788,6.70552316,125.77,125.72,6.70552316]
[1766077530053,6.70552316,125.83,125.76,6.70552316]
[1766077530230,7.35552316,125.88,125.76,10.43767296]
[1766077530433,0.65,125.92,125.86,6.70552316]
[1766077530642,7.35552316,125.92,125.87,6.70552316]
[1766077530940,7.35552316,125.92,125.84,0.65]
[1766077530941,6.70552316,125.9,125.84,0.65]
[1766077531164,6.70552316,125.91,125.86,6.70552316]
[1766077531357,6.70552316,125.91,125.84,0.65]
[1766077531358,0.65,125.9,125.83,0.65]
[1766077531559,0.65,125.93,125.84,6.70552316]
[1766077531895,6.70552316,125.9,125.84,7.35552316]
[1766077532096,6.70552316,125.9,125.85,6.70552316]
[1766077532269,6.70552316,125.89,125.84,7.35552316]
[1766077532465,7.94360781,125.89,125.8,19.87138271]
[1766077532670,7.94360781,125.89,125.81,0.65]
[1766077532975,7.94360781,125.89,125.82,0.65]
[1766077533275,0.65,125.93,125.86,6.70552316]
[1766077533480,0.65,125.93,125.87,6.70552316]
[1766077533713,10.43767296,125.94,125.88,6.70552316]
[1766077533869,6.70552316,125.95,125.85,8.80994492]
[1766077534068,6.70552316,125.96,125.89,0.65]
[1766077534468,7.93929195,125.96,125.89,0.65]
[1766077534669,7.93929195,125.96,125.82,6.70552316]
[1766077534878,8.58713786,125.99,125.9,0.65]
[1766077535181,8.58713786,125.99,125.89,7.94343872]
[1766077535182,8.7,126.01,125.95,6.70552316]
[1766077535365,0.99999999,126.07,125.96,0.65]
[1766077535366,0.65,126.07,125.96,0.65]
[1766077535566,0.65,126.07,125.99,6.70552316]
[1766077535768,6.70552316,126.04,125.98,7.35552316]
[1766077535998,7.93147208,126.08,126.01,6.70552316]
[1766077536214,7.93126324,126.09,126.03,6.70552316]
[1766077536370,14.63648719,126.09,126.01,7.93570029]
[1766077536570,19.82416958,126.11,126.04,6.70552316]
[1766077536778,19.82416958,126.11,126.03,6.70552316]
[1766077536972,6.70552316,126.09,126.02,0.65]
[1766077537174,6.70552316,126.12,126.07,6.70552316]
[1766077537374,0.99999999,126.2,126.06,0.65]
[1766077537375,8.7,126.18,126.1,10.94535182]
[1766077537596,20.4629656,126.18,126.1,0.65]
[1766077537776,10.94535182,126.16,126.11,10.94535182]
[1766077538100,0.65,126.18,126.1,11.59535182]
[1766077538296,0.65,126.18,126.1,0.65]
[1766077538494,0.65,126.18,126.1,11.59535182]
[1766077538495,7.92581437,126.17,126.1,11.59535182]
[1766077538880,27.74035031,126.17,126.1,11.59535182]
[1766077539201,27.74035031,126.17,126.04,19.24761788]
[1766077539202,10.94535182,126.12,126.07,11.59535182]
[1766077539497,10.94535182,126.08,126.01,0.65]
[1766077539798,0.65,126.11,126.03,0.65]
[1766077539799,10.94535182,126.09,126.03,0.65]
[1766077540105,0.65,126.13,126.02,10.94535182]
[1766077540287,10.94535182,126.06,126.01,11.59535182]
[1766077540487,10.95991398,126.06,126.01,0.65]
[1766077540902,10.95991398,126.05,126.01,0.65]
[1766077541100,10.95991398,126.05,125.96,7.93842024]
[1766077541302,0.65,126.06,125.98,0.65]
[1766077541684,10.95991398,126.05,126.0,11.60991398]
[1766077542014,38.84838736,126.08,126.0,11.60991398]
[1766077542344,38.84838736,126.08,126.01,0.65]
[1766077542345,18.36970716,126.08,126.01,0.65]
[1766077542514,10.95991398,126.05,125.98,0.71]
[1766077542719,10.95991398,126.05,126.0,0.71]
[1766077543014,10.95991398,126.06,126.0,0.71]
[1766077543317,10.95991398,126.06,126.01,10.95991398]
[1766077543484,0.65,126.08,126.0,11.66991398]
[1766077543689,10.95991398,126.06,126.01,10.95991398]
[1766077543902,7.93021411,126.1,126.03,11.66991398]
[1766077544101,7.93021411,126.1,126.03,0.71]
[1766077544102,8.58021411,126.1,126.03,0.71]
[1766077544303,10.95991398,126.08,126.03,11.66991398]
[1766077544514,10.95991398,126.04,125.98,10.95991398]
[1766077544716,11.08767296,126.06,125.97,11.66991398]
[1766077545004,38.84562362,126.09,126.0,11.66991398]
[1766077545193,10.95991398,126.04,126.0,0.71]
[1766077545390,10.95991398,126.03,125.97,11.66991398]
[1766077545593,11.08767296,126.08,125.99,10.95991398]
[1766077545793,10.95991398,126.04,125.95,30.28677815]
[1766077545991,10.95991398,126.02,125.97,11.66991398]
[1766077546193,10.95991398,126.01,125.97,0.71]
[1766077546398,0.65,126.03,125.95,11.66991398]
[1766077546599,10.95991398,126.0,125.95,11.66991398]
[1766077546812,7.93608647,126.01,125.95,11.66991398]
[1766077547000,7.93608647,126.01,125.96,10.95991398]
[1766077547205,0.65,126.03,125.96,11.66991398]
[1766077547406,10.95991398,126.03,125.98,0.71]
[1766077547735,10.95991398,126.01,125.94,19.13767296]
[1766077548014,10.95991398,126.01,125.95,0.71]
[1766077548403,5.64933754,126.0,125.93,11.66991398]
[1766077548602,18.89579208,126.01,125.95,11.66991398]
[1766077548808,27.77557336,126.01,125.91,0.71]
[1766077549014,10.95991398,125.99,125.94,0.71]
[1766077549213,10.95991398,125.97,125.91,8.65199171]
[1766077549420,10.95991398,125.99,125.93,0.71]
[1766077549625,5.662598,125.98,125.94,10.95991398]
[1766077549922,10.95991398,126.0,125.94,10.95991398]
[1766077550122,0.65,126.04,125.97,0.71]
[1766077550319,11.60991398,126.04,125.99,10.95991398]
[1766077550498,19.54405772,126.04,125.98,10.95991398]
[1766077550703,10.95991398,126.03,125.98,10.95991398]
[1766077550920,10.95991398,126.03,125.97,10.95991398]
[1766077551222,10.95991398,126.01,125.95,10.95991398]
[1766077551421,10.95991398,126.01,125.96,10.95991398]
[1766077551620,10.95991398,126.01,125.95,10.95991398]
[1766077551818,0.67,126.02,125.95,10.95991398]
[1766077552019,10.95991398,126.01,125.94,8.64974141]
[1766077552223,10.95991398,126.02,125.96,10.95991398]
[1766077552405,10.95991398,126.02,125.91,19.7698589]
[1766077552406,11.62991398,125.99,125.91,0.71]
[1766077552601,0.67,125.96,125.91,10.95991398]
[1766077552911,10.95991398,125.98,125.93,10.95991398]
[1766077553106,0.67,125.99,125.95,10.95991398]
[1766077553302,30.27488097,126.03,125.91,38.23524914]
[1766077553303,0.67,126.03,125.98,10.95991398]
[1766077553527,0.67,126.05,125.96,0.71]
[1766077553826,0.67,126.05,125.99,10.95991398]
[1766077554022,0.67,126.04,125.99,10.95991398]
[1766077554228,0.67,126.07,126.01,10.95991398]
[1766077554430,11.62991398,126.07,126.02,10.95991398]
[1766077554607,19.56238405,126.07,126.0,7.93641171]
[1766077554808,8.60247007,126.07,126.0,7.93641171]
[1766077555003,8.60247007,126.07,125.96,11.14767296]
[1766077555004,0.67,126.03,125.96,11.14767296]
[1766077555309,11.62991398,126.03,125.97,10.95991398]
[1766077555509,11.62991398,126.03,125.96,11.14767296]
[1766077555726,11.62991398,126.01,125.95,18.89952894]
[1766077556023,38.20039606,126.07,125.94,10.43767296]
[1766077556024,8.7,126.05,125.97,18.89831201]
[1766077556221,0.67,126.04,125.98,10.95991398]
[1766077556421,11.62991398,126.04,125.97,8.64839803]
[1766077556623,19.56509058,126.03,125.97,10.95991398]
[1766077556824,8.6051766,126.03,125.96,8.64897115]
[1766077557008,0.67,126.03,125.98,10.95991398]
[1766077557206,11.62991398,126.06,126.0,10.95991398]
[1766077557421,0.67,126.06,126.01,10.95991398]
[1766077557736,0.67,126.02,125.96,10.95991398]
[1766077557906,0.67,126.02,125.97,10.95991398]
[1766077558102,11.62991398,126.01,125.94,7.94009663]
[1766077558302,11.62991398,126.01,125.95,10.95991398]
[1766077558709,0.67,126.01,125.95,10.95991398]
[1766077559016,19.56579471,126.01,125.95,10.95991398]
[1766077559213,10.95991398,125.99,125.93,0.71]
[1766077559438,10.95991398,125.99,125.9,8.80994492]
[1766077559439,11.62991398,125.99,125.91,19.84767296]
[1766077559736,11.62991398,125.97,125.92,10.95991398]
[1766077559910,0.67,125.97,125.92,10.95991398]
[1766077560107,11.62991398,125.96,125.9,10.95991398]
[1766077560310,0.67,125.96,125.91,10.95991398]
[1766077560741,0.68,126.02,125.95,10.95991398]
[1766077560912,11.63991398,126.02,125.97,10.95991398]
[1766077561120,11.63991398,125.99,125.93,8.7]
[1766077561314,10.95991398,125.97,125.9,7.94262893]
[1766077561545,10.95991398,125.97,125.83,63.70736417]
[1766077561546,0.68,125.95,125.84,8.80994492]
[1766077561730,10.95991398,125.94,125.87,19.1019952]
[1766077562033,5.38822842,125.93,125.88,0.72]
[1766077562238,10.95991398,125.91,125.85,11.67991398]
[1766077562420,10.77641523,125.9,125.78,0.72]
[1766077562628,10.95991398,125.88,125.82,10.95991398]
[1766077562936,10.95991398,125.86,125.81,0.72]
[1766077563119,16.31235069,125.85,125.8,10.95991398]
[1766077563327,10.95991398,125.82,125.76,0.72]
[1766077563532,10.95991398,125.8,125.74,18.91260804]
[1766077563752,8.7,125.86,125.76,10.95991398]
[1766077564074,5.35173015,125.85,125.78,27.82633915]
[1766077564226,0.68,125.91,125.84,10.95991398]
[1766077564420,10.95991398,125.87,125.78,27.82633915]
[1766077564731,10.95991398,125.92,125.86,10.95991398]
[1766077564934,5.34692518,125.91,125.84,36.51254677]
[1766077565137,5.34692518,125.91,125.83,18.38466664]
[1766077565138,5.33605436,125.9,125.83,18.38466664]
[1766077565313,10.95991398,125.91,125.84,16.64656719]
[1766077565639,10.95991398,125.93,125.84,36.51306432]
[1766077565827,10.95991398,125.91,125.85,8.7]
[1766077566026,5.33374049,125.9,125.86,10.95991398]
[1766077566230,10.95991398,125.91,125.85,9.42]
[1766077566434,16.29361616,125.9,125.85,0.72]
[1766077566738,10.95991398,125.86,125.8,0.82]
[1766077566938,5.33457981,125.85,125.8,11.77991398]
[1766077567141,0.68,125.89,125.82,10.95991398]
[1766077567326,10.95991398,125.86,125.81,0.72]
[1766077567515,5.33595831,125.85,125.81,11.67991398]
[1766077567713,11.63991398,125.87,125.81,8.66833997]
[1766077568010,27.80222318,125.89,125.83,10.95991398]
[1766077568011,10.95991398,125.89,125.83,10.95991398]
[1766077568218,10.95991398,125.89,125.8,0.1]
[1766077568219,0.68,125.84,125.8,0.1]
[1766077568428,10.95991398,125.83,125.8,0.1]
[1766077568640,10.95991398,125.82,125.8,0.1]
[1766077568838,0.68,125.8,125.74,10.95991398]
[1766077569043,11.63991398,125.8,125.75,18.91216759]
[1766077569344,11.63991398,125.8,125.73,8.7]
[1766077569345,10.95991398,125.83,125.76,19.10920935]
[1766077569516,11.63991398,125.82,125.76,19.10920935]
[1766077569716,11.63991398,125.82,125.77,10.95991398]
[1766077569926,27.80646698,125.87,125.77,10.95991398]
[1766077569927,0.68,125.86,125.77,0.72]
[1766077570131,11.63991398,125.87,125.8,0.72]
[1766077570433,0.68,125.82,125.76,19.10920935]
[1766077570633,0.68,125.83,125.74,19.88153483]
[1766077570836,0.68,125.83,125.76,10.95991398]
[1766077571036,10.95991398,125.85,125.79,10.95991398]
[1766077571219,0.68,125.86,125.78,0.72]
[1766077571421,10.95991398,125.85,125.78,0.72]
[1766077571628,11.63991398,125.84,125.79,10.95991398]
[1766077571826,10.95991398,125.83,125.75,0.72]
[1766077572030,10.95991398,125.81,125.75,11.67991398]
[1766077572440,0.68,125.82,125.77,10.95991398]
[1766077572630,0.68,125.82,125.75,8.67176326]
[1766077572830,11.66991398,125.81,125.75,10.95991398]
[1766077573024,11.66991398,125.81,125.74,19.13767296]
[1766077573233,11.66991398,125.84,125.77,28.52831691]
[1766077573448,4.13914278,125.88,125.83,10.95991398]
[1766077573654,0.71,125.9,125.83,0.7]
[1766077573655,0.71,125.89,125.83,0.7]
[1766077573942,4.138284,125.92,125.83,0.7]
[1766077574242,11.66991398,125.89,125.84,10.95991398]
[1766077574442,12.07993104,125.92,125.83,10.95991398]
[1766077574443,31.93380651,125.92,125.83,10.95991398]
[1766077574652,0.71,125.87,125.82,10.95991398]
[1766077575029,11.66991398,125.87,125.82,10.95991398]
[1766077575223,10.95991398,125.86,125.81,10.95991398]
[1766077575438,11.66991398,125.85,125.79,19.65991398]
[1766077575640,11.66991398,125.85,125.79,8.7]
[1766077575836,11.66991398,125.85,125.79,19.65991398]
[1766077576141,0.71,125.9,125.82,7.94780518]
[1766077576447,11.66991398,125.86,125.81,10.95991398]
[1766077576657,0.71,125.86,125.82,7.94764381]
[1766077576959,11.66991398,125.88,125.82,18.90755779]
[1766077577134,0.71,125.87,125.81,10.95991398]
[1766077577337,10.95991398,125.86,125.79,19.13767296]
[1766077577535,0.71,125.84,125.79,10.95991398]
[1766077577844,10.95991398,125.82,125.77,10.95991398]
[1766077578156,0.71,125.79,125.76,8.7]
[1766077578334,11.66991398,125.79,125.76,8.7]
[1766077578535,19.24761788,125.86,125.76,8.7]
[1766077578734,0.71,125.81,125.76,27.61139662]
[1766077578934,0.71,125.85,125.77,0.7]
[1766077579150,10.95991398,125.84,125.79,10.95991398]
[1766077579326,11.66991398,125.82,125.76,7.95148264]
[1766077579652,0.71,125.81,125.76,10.95991398]
[1766077579897,10.95991398,125.84,125.78,10.95991398]
[1766077580056,0.71,125.84,125.79,10.95991398]
[1766077580252,0.71,125.86,125.79,10.95991398]
[1766077580553,11.66991398,125.88,125.82,10.95991398]
[1766077580753,0.71,125.88,125.8,9.4]
[1766077580929,0.71,125.91,125.82,7.94768824]
[1766077581129,0.71,125.91,125.83,0.7]
[1766077581130,0.71,125.9,125.83,0.7]
[1766077581328,11.66991398,125.89,125.83,8.7]
[1766077581543,0.71,125.92,125.87,10.95991398]
[1766077581749,10.95991398,125.91,125.86,10.95991398]
[1766077582049,11.66991398,125.9,125.83,8.7]
[1766077582256,10.95991398,125.88,125.82,7.94768824]
[1766077582439,0.71,125.88,125.82,7.94768824]
[1766077582641,10.95991398,125.87,125.82,18.90760222]
[1766077582828,0.71,125.88,125.82,18.90766357]
[1766077583033,10.95991398,125.89,125.84,10.95991398]
[1766077583328,0.71,125.91,125.83,0.7]
[1766077583329,11.66991398,125.91,125.86,10.95991398]
[1766077583634,11.66991398,125.91,125.84,11.12383925]
[1766077583635,11.12383925,125.9,125.84,11.12383925]
[1766077583839,0.71,125.91,125.8,17.50994492]
[1766077583840,11.83383925,125.87,125.8,7.94887997]
[1766077584046,11.83383925,125.88,125.82,19.07166404]
[1766077584349,0.71,125.88,125.83,11.12383925]
[1766077584541,0.71,125.9,125.85,11.12383925]
[1766077584742,0.71,125.89,125.84,11.12383925]
[1766077584941,11.12383925,125.88,125.79,19.8733892]
[1766077585157,11.12383925,125.84,125.77,7.95074609]
[1766077585462,11.83383925,125.81,125.76,8.7]
[1766077585642,0.71,125.81,125.76,19.82383925]
[1766077585836,0.71,125.81,125.77,11.12383925]
[1766077586032,11.83383925,125.83,125.76,16.65162495]
[1766077586243,10.43767296,125.88,125.8,11.12383925]
[1766077586244,11.12383925,125.85,125.8,11.12383925]
[1766077586445,0.71,125.82,125.77,8.7]
[1766077586652,0.71,125.82,125.75,0.7]
[1766077586653,19.24761788,125.88,125.75,8.7]
[1766077586857,11.83383925,125.83,125.77,11.12383925]
[1766077587459,0.71,125.87,125.79,11.12383925]
[1766077587657,0.71,125.84,125.76,38.9683717]
[1766077587860,11.12383925,125.83,125.76,28.53069874]
[1766077588041,11.83383925,125.84,125.77,0.7]
[1766077588360,0.71,125.82,125.76,7.95156388]
[1766077588565,11.83383925,125.82,125.76,11.12383925]
[1766077588873,11.83383925,125.8,125.75,8.7]
[1766077589070,0.71,125.8,125.75,8.7]
[1766077589374,11.83383925,125.8,125.75,8.7]
[1766077589876,7.9483891,125.82,125.75,16.6522792]
[1766077590042,11.83383925,125.81,125.75,19.82383925]
[1766077590242,11.83383925,125.79,125.74,11.12383925]
[1766077590449,11.83383925,125.79,125.71,17.35461256]
[1766077590450,0.71,125.77,125.72,7.95414518]
[1766077590745,11.12383925,125.82,125.76,11.12383925]
[1766077590946,0.99999999,125.91,125.76,11.12383925]
[1766077590947,8.72,125.88,125.79,11.12383925]
[1766077591181,0.71,125.84,125.79,11.12383925]
[1766077591363,11.83383925,125.83,125.77,0.7]
[1766077591558,11.83383925,125.83,125.77,11.82383925]
[1766077591771,11.83383925,125.83,125.76,16.65151876]
[1766077591772,0.71,125.83,125.78,11.12383925]
[1766077592363,11.83383925,125.83,125.77,11.12383925]
[1766077592678,11.12383925,125.82,125.76,11.12383925]
[1766077592882,0.71,125.8,125.75,11.12383925]
[1766077593098,0.71,125.8,125.66,0.99999999]
[1766077593099,0.71,125.8,125.68,7.95632323]
[1766077593377,11.83383925,125.74,125.68,7.95666482]
[1766077593699,0.71,125.72,125.64,8.05906811]
[1766077593898,0.71,125.71,125.64,0.1]
[1766077594573,0.71,125.69,125.64,0.1]
[1766077595089,0.71,125.68,125.64,0.1]
[1766077595766,7.9541839,125.72,125.64,11.22383925]
[1766077596081,11.83383925,125.71,125.66,11.12383925]
[1766077596309,11.83383925,125.69,125.64,0.1]
[1766077596589,0.71,125.7,125.64,11.22383925]
[1766077596786,11.12383925,125.66,125.57,0.7]
[1766077596988,7.95734861,125.67,125.54,0.7]
[1766077596989,11.12383925,125.62,125.54,0.7]
[1766077597164,36.57072013,125.67,125.52,0.7]
[1766077597165,0.71,125.66,125.52,0.7]
[1766077597360,0.71,125.66,125.61,11.12383925]
[1766077597688,0.71,125.67,125.61,11.12383925]